[Event "55th Biel Festival MTO 2022"]
[Site "Biel"]
[Date "2022.07.21"]
[Round "8.18"]
[White "Song, Julien"]
[Black "Gagare, Shardul"]
[Result "0-1"]
[ECO "E01"]
[WhiteElo "2391"]
[BlackElo "2514"]
[Annotator "TA"]
[PlyCount "128"]
[EventDate "2022.07.13"]
[EventType "swiss"]
[EventCountry "SUI"]
[SourceTitle "playchess.com"]
[Source "ChessBase"]
[SourceQuality "1"]
[TimeControl "40/5400+30:1800+30"]

{[%evp 9,128,33,27,40,40,0,0,0,0,0,33,0,0,0,8,9,15,-31,5,-18,-20,-94,-93,-96,-69,-76,-78,-86,0,-95,-91,-93,-94,-87,-87,-79,-60,-62,-64,-68,-60,-62,-47,-78,-59,-40,-47,-33,-35,-89,-66,-63,-69,-125,-102,-334,-342,-347,-335,-344,-337,-337,-330,-322,-306,-282,-175,-171,-134,-233,0,0,0,0,0,0,0,0,0,0,0,0,0,0,0,0,0,-915,0,0,0,0,0,0,0,0,0,0,0,0,0,0,5522,0,0,0,0,0,0,-29987,-29988,-29988,-29989,-29990,-29991,-29995,-29996,-29996,-29995,-29997,-29998]} 1. d4 {[%emt 0:00:04]} Nf6 {[%emt 0:00:46]} 2. c4 {[%emt 0:00:05]} e6 {[%emt 0:00:44]} 3. Nf3 {[%emt 0:00:06]} d5 {[%emt 0:00:04]} 4. g3 {[%emt 0:00:06]} h6 {[%emt 0:00:39]} 5. Bg2 {[%emt 0:01:25]} Bd6 {[%emt 0:00:09]} 6. O-O {[%emt 0:01:42] E01: Catalan: Early deviations.} O-O {[%emt 0:00:06]} 7. c5 {[%emt 0:05:18]} Be7 {[%emt 0:00:09] [#]} 8. b4 $146 {[%emt 0:00:26] The position is equal.} ({Predecessor:} 8. Nbd2 Nc6 9. Nb3 a5 10. a4 b6 11. cxb6 cxb6 12. Bf4 Ba6 13. Re1 Bb4 14. Bd2 Bxd2 15. Nbxd2 {0-1 (26) Dumont,G (1677)-Beck,G (1999) ICCF email 2016}) 8... b6 {[%emt 0:08:51]} 9. Bf4 {[%emt 0:18:14]} Ne4 {[%emt 0:17:23] Inhibits Nc3.} 10. Nfd2 {[%emt 0:07:53]} Nxd2 {[%emt 0:05:17]} 11. Qxd2 {[%emt 0:11:53]} (11. Nxd2 Nc6 $15) 11... Nc6 {[%emt 0:07:58]} 12. b5 {[%emt 0:07:36]} Na5 {[%emt 0:02:01]} 13. Rc1 {[%emt 0:02:29]} (13. e4 $1 $11 {deserves consideration.}) 13... c6 {[%emt 0:08:48]} (13... g5 $5 {[%cal Rg5f4]} 14. cxb6 cxb6 $11) 14. cxb6 {[%emt 0:06:57]} axb6 {[%emt 0:02:54] Black wants to play ...g5.} 15. Nc3 {[%emt 0:01:23]} (15. bxc6 $11 {keeps the balance.} g5 16. Be5 (16. c7 Qd7 $17)) 15... g5 $17 {[%emt 0:06:38]} 16. Be3 {[%emt 0:01:36]} Nc4 {[%emt 0:01:42]} 17. Qd3 {[%emt 0:00:44]} c5 {[%emt 0:04:56]} 18. a4 {[%emt 0:02:23]} Bb7 {[%emt 0:08:42]} (18... Nxe3 $17 19. Qxe3 Bb7) 19. Bd2 {[%emt 0:09:44]} (19. dxc5 $1 $11 {remains equal.} Nxe3 20. c6 Nxg2 21. cxb7) 19... cxd4 {[%emt 0:06:00]} 20. Qxd4 {[%emt 0:00:12]} e5 {[%emt 0:03:22][%cal Be6e5,Be5e4][%mdl 32]} 21. Qd3 {[%emt 0:01:42][%cal Rg2d5]} e4 $1 {[%emt 0:00:17]} 22. Qc2 {[%emt 0:02:00]} f5 {[%emt 0:02:03]} 23. Be1 {[%emt 0:01:43]} Rc8 {[%emt 0:00:40]} 24. e3 {[%emt 0:02:53]} Bf6 {[%emt 0:09:04][%cal Of5f4]} 25. Qa2 {[%emt 0:00:41]} Rf7 {[%emt 0:02:24]} 26. Rab1 {[%emt 0:00:13]} Ne5 {[%emt 0:01:12]} 27. Ne2 {[%emt 0:07:26]} Nd3 {[%emt 0:00:06] Hoping for ...Rxc1.} 28. Rxc8 {[%emt 0:00:15]} Qxc8 {[%emt 0:00:05]} 29. Nd4 {[%emt 0:00:36]} (29. Bh3 $15) 29... Bxd4 {[%emt 0:00:59]} 30. exd4 {[%emt 0:00:07]} f4 {[%emt 0:00:14]} 31. a5 {[%emt 0:00:33]} (31. Bf1 $1 $15) 31... bxa5 $1 {[%emt 0:00:59] 0x0.0019888be984dp-1022s more active pieces.} 32. Bxa5 $2 {[%emt 0:01:56]} (32. Bf1 $17) 32... fxg3 $19 {[%emt 0:00:31]} 33. fxg3 {[%emt 0:00:10]} Rf2 {[%emt 0:00:12]} 34. Qb3 {[%emt 0:00:17]} Qf5 $1 {[%emt 0:00:42] Strongly threatening ...e3.} 35. Qd1 {[%emt 0:01:46]} Ra2 {[%emt 0:00:47] ( -> ...Qf2+)} 36. Be1 {[%emt 0:00:02] Prevents Qf2+.} Qf6 {[%emt 0:00:26]} 37. Kh1 {[%emt 0:00:55]} Qxd4 {[%emt 0:00:20]} (37... Nf2+ 38. Bxf2 Qxf2 39. Qf1 $11) 38. Qh5 {[%emt 0:00:11]} Kg7 {[%emt 0:00:43] aiming for ...Ra1.} (38... Nf2+ 39. Bxf2 Rxf2 40. Qxh6 $15 (40. Qg6+ Qg7 $15)) 39. Qe8 {[%emt 0:00:12] [#]} (39. h4 $17 {might work better.}) 39... Nf2+ $2 {[%emt 0:00:30]} (39... Qf6 40. Qb8 (40. Qd7+ Qf7 $17) 40... Ba8 41. Qc8 $17) (39... Rf2 $1 $19 {[%mdl 512]} 40. h4 (40. Bxf2 {is a self mate.} Nxf2+ 41. Kg1 Nh3+ 42. Kh1 Qg1+ 43. Rxg1 Nf2#) (40. h3 Rf8) 40... Rf7 41. hxg5 hxg5) 40. Bxf2 $11 {[%emt 0:00:30]} Rxf2 $40 {[%emt 0:00:09][%mdl 128] White needs to defend precisely.} 41. Rc1 {[%emt 0:34:12]} Rf7 {[%emt 0:02:53] Against Rc7} 42. Bh3 {[%emt 0:00:00]} (42. Rf1 Rxf1+ 43. Bxf1 Qf6) 42... Qb2 {[%emt 0:20:03]} 43. Rf1 {[%emt 0:00:00]} Rxf1+ {[%emt 0:00:11]} 44. Bxf1 {[%emt 0:00:00][%mdl 4096] Endgame KQB-KQB} Qf6 {[%emt 0:01:38][%cal Rf6f1]} 45. Kg1 {[%emt 0:00:00]} Qb6+ {[%emt 0:01:18]} 46. Kh1 {[%emt 0:00:00]} Qc7 {[%emt 0:02:25] ...d4 is the strong threat.} 47. Qe6 {[%emt 0:00:00]} e3 {[%emt 0:02:46] White must now prevent ...Qf7.} (47... Qf7 $5 48. Qe5+ Kg8 $11) 48. b6 $2 {[%emt 0:00:00][%mdl 8192]} (48. Kg1 $11) 48... d4+ $2 {[%emt 0:02:51]} ({Black should try} 48... Qf7 $1 $19 {[%cal Rf7f1]} 49. Qe5+ Kg8 50. Qb8+ Qf8 51. Qxf8+ Kxf8) 49. Kg1 {[%emt 0:00:00]} Qc6 {[%emt 0:00:50] The board is on fire.} (49... Qf7 $5 50. Qe5+ Qf6 51. Qc7+ Qf7 $11) 50. Qxc6 {[%emt 0:01:33]} Bxc6 {[%emt 0:00:02] KB-KB} 51. Ba6 {[%emt 0:00:01] Against Bb7. Threatens to win with b7.} Kf6 {[%emt 0:00:49]} 52. b7 {[%emt 0:00:28]} Bxb7 {[%emt 0:00:05]} 53. Bxb7 {[%emt 0:00:03] Ba6 would kill now. KB-KP} Ke5 {[%emt 0:00:24]} (53... d3 $2 54. Be4 $18) 54. Kf1 {[%emt 0:04:32] White wants to mate with Ke2.} d3 {[%emt 0:00:06]} 55. Bf3 {[%emt 0:00:15]} Kf5 $2 {[%emt 0:01:28][%mdl 8192]} (55... Kd4 $11) 56. h3 $2 {[%emt 0:00:22]} ({Inferior is} 56. Ke1 Ke5 $11) ({White has to play} 56. Bh5 $1 $18 Ke5 57. Kg2) 56... Ke5 {[%emt 0:00:33]} 57. Ke1 {[%emt 0:00:12]} Kd4 {[%emt 0:00:21]} 58. Kd1 {[%emt 0:01:25]} Kc3 {[%emt 0:00:13]} 59. Be4 $2 {[%emt 0:00:17][%mdl 8192] [#]} (59. Bh5 $11) 59... e2+ $1 {[%emt 0:00:44] Black mates.} 60. Ke1 {[%emt 0:00:12] [#]} Kd4 $1 {[%emt 0:00:30]} 61. Bxd3 {[%emt 0:02:31]} Kxd3 {[%emt 0:00:06]} 62. g4 {[%emt 0:00:23]} Ke3 {[%emt 0:00:11]} 63. h4 {[%emt 0:00:05]} gxh4 {[%emt 0:00:07][%cal Bg5h4,Bh4h3][%mdl 32]} 64. g5 {[%emt 0:00:10]} h3 {[%emt 0:00:05] What a fight!  Weighted Error Value: White=0.60/Black=0.18 (very precise)} 0-1

[Event "55th Biel Festival MTO 2022"]
[Site "Biel"]
[Date "2022.07.21"]
[Round "8.19"]
[White "Rathanvel V S"]
[Black "Haimovich, Tal"]
[Result "1/2-1/2"]
[ECO "C19"]
[WhiteElo "2478"]
[BlackElo "2372"]
[Annotator "RC"]
[PlyCount "35"]
[EventDate "2022.07.13"]
[EventType "swiss"]
[EventCountry "SUI"]
[SourceTitle "playchess.com"]
[Source "ChessBase"]
[SourceQuality "1"]
[TimeControl "40/5400+30:1800+30"]

1. e4 {[%emt 0:00:07]} e6 {[%emt 0:00:07]} 2. d4 {[%emt 0:00:22]} d5 {[%emt 0:00:05]} 3. Nc3 {[%emt 0:00:07]} Bb4 {[%emt 0:00:07]} 4. e5 {[%emt 0:00:16]} c5 {[%emt 0:00:08]} 5. a3 {[%emt 0:00:04]} Bxc3+ {[%emt 0:00:05]} 6. bxc3 {[%emt 0:00:08]} Nc6 {[%emt 0:00:03]} 7. Nf3 {[%emt 0:04:51]} Nge7 {[%emt 0:01:16]} 8. Bd3 {[%emt 0:03:30]} Qa5 {[%emt 0:02:22]} 9. Bd2 {[%emt 0:09:27]} c4 {[%emt 0:06:04]} 10. Be2 {[%emt 0:00:02]} Bd7 {[%emt 0:03:02]} 11. O-O {[%emt 0:05:08]} f6 {[%emt 0:10:37]} 12. exf6 {[%emt 0:11:20]} gxf6 {[%emt 0:00:21]} 13. Nh4 {[%emt 0:04:23]} O-O-O {[%emt 0:01:02]} 14. f4 {[%emt 0:01:19]} Rdg8 {[%emt 0:03:29]} 15. Bg4 {[%emt 0:03:28]} Ng6 {[%emt 0:03:27]} 16. Nxg6 {[%emt 0:05:45]} hxg6 {[%emt 0:01:08]} 17. Qe1 {[%emt 0:06:25]} Nd8 {[%emt 0:02:02]} 18. Rf2 {[%emt 0:10:00]} 1/2-1/2

[Event "55th Biel Festival MTO 2022"]
[Site "Biel"]
[Date "2022.07.21"]
[Round "8.20"]
[White "Sahithi Varshini M"]
[Black "Gurel, Ediz"]
[Result "0-1"]
[ECO "B43"]
[WhiteElo "2312"]
[BlackElo "2435"]
[Annotator "TA"]
[PlyCount "124"]
[EventDate "2022.07.13"]
[EventType "swiss"]
[EventCountry "SUI"]
[SourceTitle "playchess.com"]
[Source "ChessBase"]
[SourceQuality "1"]
[TimeControl "40/5400+30:1800+30"]

{[%evp 15,124,12,23,27,14,-20,-12,-11,-12,-15,-7,-24,0,-13,-21,-19,-20,-24,26,21,17,0,9,10,26,20,20,20,27,17,4,17,23,12,0,0,0,0,0,0,0,0,0,-36,-43,-177,-172,-176,-178,-135,-52,-50,-20,-34,0,-10,0,0,0,0,7,0,0,0,26,8,40,25,17,34,31,0,25,0,36,9,7,0,6,13,71,0,35,27,28,0,0,0,0,5,0,0,0,0,0,0,0,0,0,0,0,0,0,0,0,-487,-463,-12840,-12839,-29997,-29998]} 1. e4 {[%emt 0:00:23]} c5 {[%emt 0:00:08]} 2. Nf3 {[%emt 0:00:05]} e6 {[%emt 0:00:09]} 3. d4 {[%emt 0:00:14]} cxd4 {[%emt 0:00:05]} 4. Nxd4 {[%emt 0:00:05]} a6 {[%emt 0:00:11]} 5. Nc3 {[%emt 0:00:27][%cal Bb1c3,Bc3e2,Be2d4][%mdl 32]} Qc7 {[%emt 0:00:06]} 6. g3 {[%emt 0:00:40]} Bb4 {[%emt 0:00:06]} 7. Bd2 {[%emt 0:03:45]} Nf6 {[%emt 0:00:21]} 8. Bg2 {[%emt 0:00:36]} Nc6 {[%emt 0:00:14]} 9. Nb3 {[%emt 0:06:41] B43: Sicilian: Kan Variation: 5 Nc3.} O-O {[%emt 0:00:14] [#]} 10. Ne2 $146 {[%emt 0:04:44]} (10. O-O {with more complications.} d6 11. f4 b5 12. g4) ({Predecessor:} 10. O-O Be7 11. f4 d6 12. g4 Re8 13. g5 Nd7 14. a4 Bf8 15. Kh1 Rb8 16. Qh5 g6 {½-½ (74) Fressinet,L (2652)-Sadikhov,U (2488) Skopje 2019}) 10... Be7 {[%emt 0:02:35]} 11. O-O {[%emt 0:05:35] The position is equal.} Ne5 {[%emt 0:09:27]} 12. Bc3 {[%emt 0:10:37]} d6 {[%emt 0:06:21]} 13. Ned4 {[%emt 0:05:07]} Bd7 {[%emt 0:07:07]} 14. Qe2 {[%emt 0:01:57]} Rac8 {[%emt 0:03:17]} 15. Rfe1 {[%emt 0:01:31]} b5 {[%emt 0:02:14]} 16. Nf3 {[%emt 0:19:21]} Bc6 {[%emt 0:10:13]} (16... Nc4 $142) 17. Nxe5 $11 {[%emt 0:04:01]} dxe5 {[%emt 0:00:06]} 18. Ba5 {[%emt 0:00:06]} Qb8 {[%emt 0:03:51]} 19. c3 {[%emt 0:01:24]} Ba8 {[%emt 0:03:29]} 20. a3 {[%emt 0:02:28]} Bd8 {[%emt 0:08:42]} 21. Bb4 {[%emt 0:01:16]} Re8 {[%emt 0:00:04]} 22. a4 {[%emt 0:00:59]} bxa4 {[%emt 0:02:36]} 23. Rxa4 {[%emt 0:00:51]} Bc6 $1 {[%emt 0:00:04]} 24. Ra3 {[%emt 0:02:16]} (24. Qxa6 $2 Bxa4 25. Qxa4 Be7 $19) (24. Rxa6 Bb5 25. Ra8 Qxa8 $17) 24... Bb6 {[%emt 0:03:06]} 25. Ba5 {[%emt 0:06:56]} ({Much worse is} 25. Rxa6 Bb5 $1 26. Rxb6 Qxb6 $17) 25... Bb5 {[%emt 0:03:31]} 26. Qc2 {[%emt 0:01:05]} Ba7 $36 {[%emt 0:04:55][%mdl 2048] aiming for ...Ng4. Black fights for an advantage.} 27. Bf3 {[%emt 0:01:05] Against Ng4} h5 {[%emt 0:01:04]} 28. h3 {[%emt 0:01:40] Inhibits Ng4.} h4 {[%emt 0:01:14]} 29. g4 {[%emt 0:01:46]} (29. gxh4 $5 {[%cal Re1d1]} Qb7 30. Rc1 $11) 29... Nh7 {[%emt 0:01:19][%cal Of7f5,Bf6h7,Bh7f8,Bf8g6,Bg6f4][%mdl 32]} 30. Kg2 {[%emt 0:01:38]} (30. Nd2 $15) 30... Nf8 $1 $19 {[%emt 0:00:39]} ({Not} 30... Ng5 31. Nd2 $17) 31. Nc1 {[%emt 0:04:04]} Ng6 {[%emt 0:00:33]} 32. b3 {[%emt 0:00:05] [#]} Qd6 {[%emt 0:04:27]} ({Black should try} 32... f5 $1 $17 {Hoping for ...Rf8.} 33. Ra2 Rf8 34. gxf5 Nf4+ 35. Kh2 exf5) 33. Ra2 $1 $15 {[%emt 0:00:05]} Qe7 {[%emt 0:00:44]} 34. c4 {[%emt 0:01:10]} Nf4+ {[%emt 0:00:18]} 35. Kh2 {[%emt 0:00:05]} Qf6 {[%emt 0:00:11][%cal Of4h3] ...Nxh3! is the strong threat.} 36. Bg2 {[%emt 0:01:59]} Bc6 {[%emt 0:01:16]} 37. f3 {[%emt 0:01:50]} Bb7 {[%emt 0:05:55]} 38. Rd1 {[%emt 0:00:56]} Be3 {[%emt 0:04:05]} 39. Ne2 {[%emt 0:01:02]} Rf8 {[%emt 0:04:17]} 40. Qc3 {[%emt 0:03:39]} Bf2 {[%emt 0:03:42]} 41. Kh1 {[%emt 0:30:59]} Nxe2 {[%emt 0:33:09]} 42. Rxe2 {[%emt 0:00:54]} Bd4 {[%emt 0:00:08]} 43. Qc1 {[%emt 0:01:28]} Bc6 {[%emt 0:01:52]} 44. Be1 {[%emt 0:02:02]} Rfd8 {[%emt 0:01:07]} 45. g5 {[%emt 0:00:35]} Qe7 {[%emt 0:01:48]} 46. Bxh4 {[%emt 0:00:15]} g6 {[%emt 0:00:11]} 47. Be1 {[%emt 0:01:27]} Kg7 {[%emt 0:01:14]} (47... Rb8 $11 {remains equal.}) 48. f4 {[%emt 0:00:52]} ({White should play} 48. h4 $16) 48... Bb7 {[%emt 0:01:33]} 49. h4 {[%emt 0:00:00]} Qc5 {[%emt 0:00:00][%cal Od4e3]} 50. Bf3 {[%emt 0:00:00]} exf4 {[%emt 0:00:00]} 51. Qxf4 {[%emt 0:00:00]} Be5 {[%emt 0:00:00]} 52. Qc1 {[%emt 0:00:00]} a5 {[%emt 0:00:00]} 53. Kg2 {[%emt 0:00:00]} Rxd1 {[%emt 0:00:00]} 54. Qxd1 {[%emt 0:00:00]} a4 {[%emt 0:00:00]} 55. bxa4 {[%emt 0:00:00]} Qxc4 {[%emt 0:00:00]} 56. Bg3 {[%emt 0:00:00]} Bxg3 {[%emt 0:00:00]} 57. Kxg3 {[%emt 0:00:00]} Qc7+ {[%emt 0:00:00]} 58. Kg2 {[%emt 0:00:00]} Qf4 {[%emt 0:00:00]} 59. Qe1 {[%emt 0:01:39]} Ba6 {[%emt 0:00:00]} 60. Rb2 {[%emt 0:02:52][%mdl 8192]} (60. Qd2 $11 {and White is okay.} Qxh4 61. Re1) 60... Rc1 $19 {[%emt 0:00:00]} 61. Qf2 {[%emt 0:00:16]} ({Avoid the trap} 61. Qd2 $2 Bf1+ 62. Kf2 Qxh4+ 63. Ke3 {[#]} e5 $1 64. Qxc1 Qxg5+ 65. Kf2 Qxc1) (61. Bd1 $142 Bd3 62. Rf2 Bxe4+ 63. Kf1) 61... Bf1+ {[%emt 0:00:00]} 62. Kg1 {[%emt 0:00:09]} Bh3+ {[%emt 0:00:00] Weighted Error Value: White=0.43/Black=0.10 (very precise)} 0-1

[Event "55th Biel Festival MTO 2022"]
[Site "Biel"]
[Date "2022.07.21"]
[Round "8.21"]
[White "Popiol Michal"]
[Black "Hilby Craig"]
[Result "0-1"]
[ECO "A40"]
[WhiteElo "2118"]
[BlackElo "2422"]
[Annotator "ChessBase"]
[PlyCount "78"]
[EventDate "2022.07.13"]
[EventType "swiss"]
[EventCountry "SUI"]
[SourceTitle "playchess.com"]
[Source "ChessBase"]
[SourceQuality "1"]
[TimeControl "40/5400+30:1800+30"]

1. d4 {[%emt 0:00:02]} g6 {[%emt 0:09:26]} 2. c4 {[%emt 0:00:15]} Bg7 {[%emt 0:00:05]} 3. Nc3 {[%emt 0:00:04]} e6 {[%emt 0:00:06]} 4. Nf3 {[%emt 0:03:45]} Ne7 {[%emt 0:00:06]} 5. h4 {[%emt 0:03:22]} d5 {[%emt 0:03:34]} 6. h5 {[%emt 0:01:31]} c5 {[%emt 0:00:22]} 7. dxc5 {[%emt 0:26:36]} Nbc6 {[%emt 0:02:31]} 8. e3 {[%emt 0:03:09]} O-O {[%emt 0:02:36]} 9. Bd2 {[%emt 0:09:58]} Nf5 {[%emt 0:12:38]} 10. Na4 {[%emt 0:18:53]} Qe7 {[%emt 0:11:39]} 11. b4 {[%emt 0:05:29]} Rd8 {[%emt 0:02:45]} 12. Rc1 {[%emt 0:04:38]} d4 {[%emt 0:01:29]} 13. e4 {[%emt 0:00:30]} Ne3 {[%emt 0:00:10]} 14. Qe2 {[%emt 0:02:37]} Ng4 {[%emt 0:04:03]} 15. Ng5 {[%emt 0:03:46]} e5 {[%emt 0:02:49]} 16. hxg6 {[%emt 0:03:10]} hxg6 {[%emt 0:00:14]} 17. a3 {[%emt 0:03:41]} d3 {[%emt 0:01:48]} 18. Qd1 {[%emt 0:00:50]} f6 {[%emt 0:08:29]} 19. Nf3 {[%emt 0:00:29]} f5 {[%emt 0:00:08]} 20. Nc3 {[%emt 0:00:09]} Nf6 {[%emt 0:07:46]} 21. Ng5 {[%emt 0:01:11]} fxe4 {[%emt 0:07:33]} 22. Ncxe4 {[%emt 0:00:06]} Bf5 {[%emt 0:01:18]} 23. f3 {[%emt 0:00:52]} Rd4 {[%emt 0:03:02]} 24. b5 {[%emt 0:01:52]} Bxe4 {[%emt 0:01:12]} 25. fxe4 {[%emt 0:02:19]} Nxe4 {[%emt 0:00:07]} 26. Nf3 {[%emt 0:00:23]} Nxd2 {[%emt 0:03:19]} 27. Qxd2 {[%emt 0:00:28]} e4 {[%emt 0:00:27]} 28. bxc6 {[%emt 0:00:35]} exf3+ {[%emt 0:01:36]} 29. Kd1 {[%emt 0:00:03]} Qe4 {[%emt 0:01:23]} 30. Rb1 {[%emt 0:01:51]} Qxc6 {[%emt 0:00:48]} 31. Rb3 {[%emt 0:01:02]} Qe4 {[%emt 0:02:34]} 32. Bxd3 {[%emt 0:00:43]} Rad8 {[%emt 0:02:43]} 33. Re1 {[%emt 0:02:03]} Rxd3 {[%emt 0:02:58]} 34. Rxd3 {[%emt 0:00:02]} Qxd3 {[%emt 0:00:06]} 35. Re8+ {[%emt 0:00:04]} Kh7 {[%emt 0:01:07]} 36. Rxd8 {[%emt 0:00:07]} Qb1+ {[%emt 0:00:04]} 37. Qc1 {[%emt 0:00:06]} Qxc1+ {[%emt 0:00:03]} 38. Kxc1 {[%emt 0:00:04]} fxg2 {[%emt 0:00:05]} 39. Rd1 {[%emt 0:00:09]} Bd4 {[%emt 0:00:20]} 0-1

[Event "55th Biel Festival MTO 2022"]
[Site "Biel"]
[Date "2022.07.21"]
[Round "8.22"]
[White "Korley Kassa"]
[Black "Aziz, Husain"]
[Result "1-0"]
[ECO "A07"]
[WhiteElo "2421"]
[BlackElo "2380"]
[Annotator "RC"]
[PlyCount "39"]
[EventDate "2022.07.13"]
[EventType "swiss"]
[EventCountry "SUI"]
[SourceTitle "playchess.com"]
[Source "ChessBase"]
[SourceQuality "1"]
[TimeControl "40/5400+30:1800+30"]

1. Nf3 {[%emt 0:00:03]} d5 {[%emt 0:00:21]} 2. g3 {[%emt 0:00:05]} Nd7 {[%emt 0:00:33]} 3. Bg2 {[%emt 0:01:38]} e5 {[%emt 0:00:12]} 4. d3 {[%emt 0:00:05]} Ngf6 {[%emt 0:00:43]} 5. O-O {[%emt 0:00:07]} Bd6 {[%emt 0:00:35]} 6. c4 {[%emt 0:08:16]} c6 {[%emt 0:00:32]} 7. cxd5 {[%emt 0:05:29]} cxd5 {[%emt 0:00:10]} 8. Nc3 {[%emt 0:07:30]} O-O {[%emt 0:05:33]} 9. Bd2 {[%emt 0:10:56]} a6 {[%emt 0:10:01]} 10. Rc1 {[%emt 0:09:12]} b5 {[%emt 0:06:28]} 11. Nh4 {[%emt 0:05:40]} Nb6 {[%emt 0:04:52]} 12. e4 {[%emt 0:02:27]} Be6 {[%emt 0:14:24]} 13. exd5 {[%emt 0:10:25]} Nbxd5 {[%emt 0:00:56]} 14. Ne4 {[%emt 0:02:20]} Be7 {[%emt 0:08:18]} 15. Nf3 {[%emt 0:00:55]} Qb8 {[%emt 0:07:11]} 16. Qe2 {[%emt 0:07:24]} Bg4 {[%emt 0:09:37]} 17. Nxf6+ {[%emt 0:00:51]} Bxf6 {[%emt 0:01:16]} 18. Qe4 {[%emt 0:00:16]} Bxf3 {[%emt 0:02:07]} 19. Bxf3 {[%emt 0:00:44]} Nb6 {[%emt 0:00:01]} 20. Qf5 {[%emt 0:01:31]} 1-0

[Event "55th Biel Festival MTO 2022"]
[Site "Biel"]
[Date "2022.07.21"]
[Round "8.23"]
[White "Materia, Marco"]
[Black "Tanmay Chopra"]
[Result "1/2-1/2"]
[ECO "D41"]
[WhiteElo "2409"]
[BlackElo "2322"]
[Annotator "TA"]
[PlyCount "59"]
[EventDate "2022.07.13"]
[EventType "swiss"]
[EventCountry "SUI"]
[SourceTitle "playchess.com"]
[Source "ChessBase"]
[SourceQuality "1"]
[TimeControl "40/5400+30:1800+30"]

{[%evp 14,59,11,8,13,11,20,16,14,10,21,22,13,3,8,6,4,10,10,8,9,10,9,3,3,3,3,0,8,8,8,3,9,10,9,10,21,0,0,0,0,0,0,0,0,0,7,7]} 1. d4 {[%emt 0:00:03]} Nf6 {[%emt 0:00:04]} 2. c4 {[%emt 0:00:03]} e6 {[%emt 0:00:03]} 3. Nf3 {[%emt 0:00:03]} d5 {[%emt 0:00:05]} 4. Nc3 {[%emt 0:00:04]} c5 {[%emt 0:00:19]} 5. cxd5 {[%emt 0:00:17]} Nxd5 {[%emt 0:00:12]} 6. g3 {[%emt 0:00:13]} Nxc3 {[%emt 0:00:16]} 7. bxc3 {[%emt 0:00:04]} cxd4 {[%emt 0:00:08]} 8. cxd4 {[%emt 0:00:24] The position is equal.} Bb4+ {[%emt 0:00:08] D41: Queen's Gambit Declined: Semi-Tarrasch with 5 cxd5.} 9. Bd2 {[%emt 0:00:05]} Bxd2+ {[%emt 0:00:06]} 10. Qxd2 {[%emt 0:00:05]} b6 {[%emt 0:00:08]} 11. Bg2 {[%emt 0:10:06]} Bb7 $1 {[%emt 0:00:05]} 12. O-O {[%emt 0:09:30]} O-O {[%emt 0:00:03]} 13. Rfe1 {[%emt 0:05:45]} Be4 {[%emt 0:00:15]} 14. Ne5 {[%emt 0:05:42]} Bxg2 {[%emt 0:00:10]} 15. Kxg2 {[%emt 0:00:04]} Nc6 {[%emt 0:00:15]} 16. Nxc6 {[%emt 0:02:38]} Qd5+ {[%emt 0:00:02]} 17. e4 {[%emt 0:02:28]} Qxc6 {[%emt 0:00:01]} 18. d5 {[%emt 0:03:30]} exd5 {[%emt 0:00:06]} 19. exd5 {[%emt 0:01:07]} Qd6 {[%emt 0:00:06] [#]} 20. Re4 $146 {[%emt 0:03:47]} ({Predecessor:} 20. Red1 Rac8 21. Rac1 h6 22. Rc3 Rxc3 23. Qxc3 Rd8 24. Qc4 Rd7 25. a4 Rc7 26. Qe4 Re7 27. Qc4 Rc7 28. Qe4 Re7 29. Qc4 {½-½ (29) Poleg,D (2268)-Mirzoyan,D (2345) Ahmedabad 2017}) 20... Rfd8 {[%emt 0:06:00]} 21. Rd1 {[%emt 0:02:06]} Rac8 {[%emt 0:06:27][%cal Ba8c8,Bc8c7,Bc7e7,Be7e5][%mdl 32]} 22. h4 {[%emt 0:04:58]} h6 {[%emt 0:08:40]} 23. Qe2 {[%emt 0:06:58]} Kf8 {[%emt 0:00:34]} 24. Qb2 {[%emt 0:11:11]} h5 {[%emt 0:31:59]} 25. Qe2 {[%emt 0:02:09]} g6 {[%emt 0:00:43]} 26. Rf4 {[%emt 0:03:53]} Rc7 {[%emt 0:09:36]} 27. Rd3 {[%emt 0:02:21]} Re7 {[%emt 0:02:52]} 28. Qd2 {[%emt 0:02:27]} Re5 {[%emt 0:01:55][%cal Re5d5]} 29. Rdf3 {[%emt 0:06:52]} Rd7 {[%emt 0:05:35]} 30. Rf6 $1 {[%emt 0:01:24] A balanced but interesting game.  Weighted Error Value: White=0.03 (flawless) /Black=0.01 (flawless)} 1/2-1/2